Workbook

Sheet Classsificació
A1: COPA BOTIFARRA SANT MAURE'17
A2: 13 Gener 2017
L4: CLASSIFICACIÓ | P4: RONDA 1 | S4: RONDA 2 | V4: RONDA 3 | Y4: RONDA 4 | AB4: RONDA 5 | AE4: FINAL
B5: Equip | C5: Jugador | D5: Partits | L5: Premi | M5: Diferència | N5: Favor | O5: Contra | P5: Premi | Q5: Favor | R5: Contra | S5: Premi | T5: Favor | U5: Contra | V5: Premi | W5: Favor | X5: Contra | Y5: Premi | Z5: Favor | AA5: Contra | AB5: Premi | AC5: Favor | AD5: Contra | AE5: Premi | AF5: Favor | AG5: Contra | AR5: RONDA 1 | AT5: RONDA 2 | AV5: RONDA 3 | AX5: RONDA 4 | AZ5: RONDA 5 | BC5: RONDA 1 | BE5: RONDA 2 | BG5: RONDA 3 | BI5: RONDA 4 | BK5: RONDA 5
A6: 1 | B6: 9 | C6: Jordi Marzá | J6: =RAND() -> 0.088560593 | K6: =+N6+J6 -> 231.0885606 | L6: =+P6+S6+V6+Y6+AB6+AE6 -> 18 | M6: =+N6-O6 -> 188 | N6: =+Q6+T6+W6+Z6+AC6+AF6 -> 231 | O6: =+R6+U6+X6+AA6+AD6+AG6 -> 43 | P6: 3 | Q6: 48 | R6: 17 | S6: 3 | T6: 18 | U6: 3 | V6: 3 | W6: 48 | X6: 14 | Y6: 3 | Z6: 17 | AA6: 7 | AB6: 3 | AC6: 75 | AD6: 0 | AE6: 3 | AF6: 25 | AG6: 2 | AI6: 9 | AJ6: =+AI6 -> 9 | AK6: =+AI7 -> 21 | AR6: 10 | AS6: 4 | AT6: 27 | AU6: 9 | AV6: 27 | AW6: 2 | AX6: 9 | AY6: 22 | AZ6: 9 | BA6: 8 | BC6: =+AR6*100+AS6 -> 1004 | BD6: =+AS6*100+AR6 -> 410 | BE6: =+AT6*100+AU6 -> 2709 | BF6: =+AU6*100+AT6 -> 927 | BG6: =+AV6*100+AW6 -> 2702 | BH6: =+AW6*100+AV6 -> 227 | BI6: =+AX6*100+AY6 -> 922 | BJ6: =+AY6*100+AX6 -> 2209 | BK6: =+AZ6*100+BA6 -> 908 | BL6: =+BA6*100+AZ6 -> 809
A7: =1+A6 -> 2 | B7: 22 | C7: Jaume Llobet | J7: 0.736932366 | K7: 241.7369324 | L7: 15 | M7: 156 | N7: 241 | O7: 85 | P7: 3 | Q7: 46 | R7: 26 | S7: 0 | T7: 3 | U7: 25 | V7: 3 | W7: 105 | X7: 14 | Y7: 3 | Z7: 17 | AA7: 7 | AB7: 3 | AC7: 45 | AD7: 11 | AE7: 3 | AF7: 25 | AG7: 2 | AI7: 21 | AJ7: =+AI8 -> 8 | AK7: =+AI9 -> 22 | AR7: 22 | AS7: 21 | AT7: 7 | AU7: 16 | AV7: 9 | AW7: 21 | AX7: 21 | AY7: 11 | AZ7: 21 | BA7: 10 | BC7: =+AR7*100+AS7 -> 2221 | BD7: =+AS7*100+AR7 -> 2122 | BE7: =+AT7*100+AU7 -> 716 | BF7: =+AU7*100+AT7 -> 1607 | BG7: =+AV7*100+AW7 -> 921 | BH7: =+AW7*100+AV7 -> 2109 | BI7: =+AX7*100+AY7 -> 2111 | BJ7: =+AY7*100+AX7 -> 1121 | BK7: =+AZ7*100+BA7 -> 2110 | BL7: =+BA7*100+AZ7 -> 1021
A8: =1+A7 -> 3 | B8: 8 | C8: Núria Roca | J8: 0.4835614705 | K8: 287.4835615 | L8: 12 | M8: 170 | N8: 287 | O8: 117 | P8: 0 | Q8: 17 | R8: 48 | S8: 3 | T8: 24 | U8: 0 | V8: 3 | W8: 105 | X8: 14 | Y8: 3 | Z8: 64 | AA8: 30 | AB8: 3 | AC8: 75 | AD8: 0 | AE8: 0 | AF8: 2 | AG8: 25 | AI8: 8 | AJ8: =+AI10 -> 2 | AK8: =+AI11 -> 10 | AR8: 14 | AS8: 3 | AT8: 28 | AU8: 22 | AV8: 3 | AW8: 7 | AX8: 8 | AY8: 10 | AZ8: 22 | BA8: 2 | BC8: 1403 | BD8: 314 | BE8: =+AT8*100+AU8 -> 2822 | BF8: =+AU8*100+AT8 -> 2228 | BG8: =+AV8*100+AW8 -> 307 | BH8: =+AW8*100+AV8 -> 703 | BI8: =+AX8*100+AY8 -> 810 | BJ8: =+AY8*100+AX8 -> 1008 | BK8: =+AZ8*100+BA8 -> 2202 | BL8: =+BA8*100+AZ8 -> 222
A9: 4 | B9: 2 | C9: Mercè Marinel·lo | J9: 0.1458803529 | K9: 185.1458804 | L9: 12 | M9: 98 | N9: 185 | O9: 87 | P9: 3 | Q9: 24 | R9: 0 | S9: 3 | T9: 25 | U9: 3 | V9: 0 | W9: 14 | X9: 48 | Y9: 3 | Z9: 75 | AA9: 0 | AB9: 3 | AC9: 45 | AD9: 11 | AE9: 0 | AF9: 2 | AG9: 25 | AI9: 22 | AJ9: =+AI12 -> 11 | AK9: =+AI13 -> 5 | AR9: 11 | AS9: 26 | AT9: 2 | AU9: 21 | AV9: 11 | AW9: 16 | AX9: 16 | AY9: 14 | AZ9: 11 | BA9: 5 | BC9: =+AR9*100+AS9 -> 1126 | BD9: =+AS9*100+AR9 -> 2611 | BE9: =+AT9*100+AU9 -> 221 | BF9: =+AU9*100+AT9 -> 2102 | BG9: =+AV9*100+AW9 -> 1116 | BH9: =+AW9*100+AV9 -> 1611 | BI9: =+AX9*100+AY9 -> 1614 | BJ9: =+AY9*100+AX9 -> 1416 | BK9: =+AZ9*100+BA9 -> 1105 | BL9: =+BA9*100+AZ9 -> 511
A10: 5 | B10: 21 | C10: Josep Mª Grau | J10: 0.8186585359 | K10: 126.8186585 | L10: 10 | M10: -9 | N10: 126 | O10: 135 | P10: 3 | Q10: 46 | R10: 26 | S10: 3 | T10: 25 | U10: 3 | V10: 3 | W10: 48 | X10: 14 | Y10: 1 | Z10: 7 | AA10: 17 | AB10: 0 | AC10: 0 | AD10: 75 | AI10: 2 | AJ10: =+AI14 -> 26 | AK10: =+AI15 -> 16 | AR10: 27 | AS10: 7 | AT10: 14 | AU10: 26 | AV10: 28 | AW10: 24 | AX10: 27 | AY10: 3 | AZ10: 26 | BA10: 16 | BC10: =+AR10*100+AS10 -> 2707 | BD10: =+AS10*100+AR10 -> 727 | BE10: =+AT10*100+AU10 -> 1426 | BF10: =+AU10*100+AT10 -> 2614 | BG10: =+AV10*100+AW10 -> 2824 | BH10: =+AW10*100+AV10 -> 2428 | BI10: =+AX10*100+AY10 -> 2703 | BJ10: =+AY10*100+AX10 -> 327 | BK10: =+AZ10*100+BA10 -> 2616 | BL10: =+BA10*100+AZ10 -> 1626
A11: 6 | B11: 14 | C11: Pere Segura | J11: 0.1962716516 | K11: 162.1962717 | L11: 9 | M11: -9 | N11: 162 | O11: 171 | P11: 3 | Q11: 19 | R11: 13 | S11: 0 | T11: 32 | U11: 61 | V11: 3 | W11: 55 | X11: 18 | Y11: 0 | Z11: 30 | AA11: 64 | AB11: 3 | AC11: 26 | AD11: 15 | AI11: 10 | AJ11: =+AI16 -> 14 | AK11: =+AI17 -> 25 | AR11: 5 | AS11: 25 | AT11: 3 | AU11: 11 | AV11: 22 | AW11: 8 | AX11: 2 | AY11: 5 | AZ11: 14 | BA11: 25 | BC11: =+AR11*100+AS11 -> 525 | BD11: =+AS11*100+AR11 -> 2505 | BE11: 311 | BF11: 1103 | BG11: 2208 | BH11: 822 | BI11: 205 | BJ11: 502 | BK11: 1425 | BL11: 2514
A12: 7 | B12: 10 | C12: Marc Vidal | J12: 0.8695045479 | K12: 168.8695045 | L12: 9 | M12: -21 | N12: 168 | O12: 189 | P12: 0 | Q12: 26 | R12: 46 | S12: 3 | T12: 23 | U12: 20 | V12: 3 | W12: 55 | X12: 18 | Y12: 3 | Z12: 64 | AA12: 30 | AB12: 0 | AC12: 0 | AD12: 75 | AI12: 11 | AJ12: =+AI18 -> 27 | AK12: =+AI19 -> 24 | AR12: 16 | AS12: 9 | AT12: 10 | AU12: 25 | AV12: 10 | AW12: 14 | AX12: 26 | AY12: 24 | AZ12: 27 | BA12: 24 | BC12: 1609 | BD12: 916 | BE12: 1025 | BF12: 2510 | BG12: 1014 | BH12: 1410 | BI12: 2624 | BJ12: 2426 | BK12: 2724 | BL12: 2427
A13: 8 | B13: 27 | C13: Edgar Llobet | J13: 0.2662097239 | K13: 142.2662097 | L13: 9 | M13: -24 | N13: 142 | O13: 166 | P13: 3 | Q13: 59 | R13: 28 | S13: 3 | T13: 18 | U13: 3 | V13: 0 | W13: 14 | X13: 48 | Y13: 0 | Z13: 0 | AA13: 75 | AB13: 3 | AC13: 51 | AD13: 12 | AI13: 5 | AJ13: =+AI20 -> 4 | AK13: =+AI21 -> 28 | AR13: 24 | AS13: 8 | AT13: 4 | AU13: 5 | AV13: 25 | AW13: 4 | AX13: 7 | AY13: 28 | AZ13: 4 | BA13: 28 | BC13: 2408 | BD13: 824 | BE13: 405 | BF13: 504 | BG13: 2504 | BH13: 425 | BI13: 728 | BJ13: 2807 | BK13: 428 | BL13: 2804
A14: 9 | B14: 25 | C14: Satur Cid | J14: 0.1155092463 | K14: 119.1155092 | L14: 9 | M14: -30 | N14: 119 | O14: 149 | P14: 0 | Q14: 28 | R14: 59 | S14: 3 | T14: 23 | U14: 20 | V14: 0 | W14: 18 | X14: 55 | Y14: 3 | Z14: 24 | AA14: 0 | AB14: 3 | AC14: 26 | AD14: 15 | AI14: 26 | AJ14: =+AI22 -> 3 | AK14: =+AI23 -> 7 | BC14: 0 | BD14: 0 | BE14: 0 | BF14: 0 | BG14: 0 | BH14: 0 | BI14: 0 | BJ14: 0 | BK14: 0 | BL14: 0
A15: 10 | B15: 24 | C15: Mayjo Nevado | J15: 0.05043521237 | K15: 137.0504352 | L15: 9 | M15: -47 | N15: 137 | O15: 184 | P15: 0 | Q15: 17 | R15: 48 | S15: 3 | T15: 24 | U15: 0 | V15: 0 | W15: 14 | X15: 105 | Y15: 3 | Z15: 31 | AA15: 19 | AB15: 3 | AC15: 51 | AD15: 12 | AI15: 16 | AJ15: 9 | AK15: 8 | AM15: =+AJ15 -> 9 | AN15: =+AK15 -> 8 | AO15: =+AJ16 -> 21 | AP15: =+AK16 -> 10 | BC15: 0 | BD15: 0 | BE15: 0 | BF15: 0 | BG15: 0 | BH15: 0 | BI15: 0 | BJ15: 0 | BK15: 0 | BL15: 0
A16: 11 | B16: 3 | C16: Josefina Bacardit | J16: 0.09505728025 | K16: 105.0950573 | L16: 9 | M16: -50 | N16: 105 | O16: 155 | P16: 3 | Q16: 19 | R16: 13 | S16: 3 | T16: 61 | U16: 32 | V16: 0 | W16: 1 | X16: 35 | Y16: 0 | Z16: 0 | AA16: 75 | AB16: 3 | AC16: 24 | AD16: 0 | AI16: 14 | AJ16: 21 | AK16: 10 | AM16: =+AJ17 -> 22 | AN16: =+AK17 -> 2 | AO16: =+AJ18 -> 11 | AP16: =+AK18 -> 5 | BC16: 0 | BD16: 0 | BE16: 0 | BF16: 0 | BG16: 0 | BH16: 0 | BI16: 0 | BJ16: 0 | BK16: 0 | BL16: 0
A17: 12 | B17: 11 | C17: Joan Carles Conesa | J17: 0.6497703048 | K17: 127.6497703 | L17: 8 | M17: 13 | N17: 127 | O17: 114 | P17: 1 | Q17: 13 | R17: 19 | S17: 3 | T17: 61 | U17: 32 | V17: 3 | W17: 35 | X17: 1 | Y17: 1 | Z17: 7 | AA17: 17 | AB17: 0 | AC17: 11 | AD17: 45 | AI17: 25 | AJ17: 22 | AK17: 2 | AM17: =+AJ19 -> 26 | AN17: =+AK19 -> 16 | AO17: =+AJ20 -> 14 | AP17: =+AK20 -> 25 | BC17: 0 | BD17: 0 | BE17: 0 | BF17: 0 | BG17: 0 | BH17: 0 | BI17: 0 | BJ17: 0 | BK17: 0 | BL17: 0
A18: 13 | B18: 5 | C18: Antoni Terrés | J18: 0.660890419 | K18: 158.6608904 | L18: 7 | M18: 31 | N18: 158 | O18: 127 | P18: 0 | Q18: 28 | R18: 59 | S18: 1 | T18: 20 | U18: 23 | V18: 3 | W18: 24 | X18: 0 | Y18: 3 | Z18: 75 | AA18: 0 | AB18: 0 | AC18: 11 | AD18: 45 | AI18: 27 | AJ18: 11 | AK18: 5 | AM18: =+AJ21 -> 27 | AN18: =+AK21 -> 24 | AO18: =+AJ22 -> 4 | AP18: =+AK22 -> 28 | AR18: 21 | AS18: 6 | AT18: 21 | AU18: 6 | BC18: 2106 | BD18: 621 | BE18: 2106 | BF18: 621 | BG18: 0 | BH18: 0 | BI18: 0 | BJ18: 0 | BK18: 0 | BL18: 0
A19: 14 | B19: 26 | C19: Jaume Asensio | J19: 0.3944121421 | K19: 115.3944121 | L19: 7 | M19: -10 | N19: 115 | O19: 125 | P19: 1 | Q19: 13 | R19: 19 | S19: 0 | T19: 32 | U19: 61 | V19: 3 | W19: 24 | X19: 0 | Y19: 3 | Z19: 31 | AA19: 19 | AB19: 0 | AC19: 15 | AD19: 26 | AI19: 24 | AJ19: 26 | AK19: 16 | AR19: 23 | AS19: 30 | AT19: 23 | AU19: 30 | BC19: 2330 | BD19: 3023 | BE19: 2330 | BF19: 3023 | BG19: 0 | BH19: 0 | BI19: 0 | BJ19: 0 | BK19: 0 | BL19: 0
A20: 15 | B20: 16 | C20: Montse Nogué | J20: 0.009329761866 | K20: 131.0093298 | L20: 6 | M20: 5 | N20: 131 | O20: 126 | P20: 3 | Q20: 48 | R20: 17 | S20: 0 | T20: 3 | U20: 18 | V20: 3 | W20: 35 | X20: 1 | Y20: 0 | Z20: 30 | AA20: 64 | AB20: 0 | AC20: 15 | AD20: 26 | AI20: 4 | AJ20: 14 | AK20: 25 | BC20: 0 | BD20: 0 | BE20: 0 | BF20: 0 | BG20: 0 | BH20: 0 | BI20: 0 | BJ20: 0 | BK20: 0 | BL20: 0
A21: 16 | B21: 7 | C21: Carles Rodon | J21: 0.4867379632 | K21: 106.486738 | L21: 6 | M21: -6 | N21: 106 | O21: 112 | P21: 3 | Q21: 59 | R21: 28 | S21: 0 | T21: 3 | U21: 18 | V21: 0 | W21: 1 | X21: 35 | Y21: 0 | Z21: 19 | AA21: 31 | AB21: 3 | AC21: 24 | AD21: 0 | AI21: 28 | AJ21: 27 | AK21: 24 | BC21: 0 | BD21: 0 | BE21: 0 | BF21: 0 | BG21: 0 | BH21: 0 | BI21: 0 | BJ21: 0 | BK21: 0 | BL21: 0
A22: 17 | B22: 4 | C22: MªAngels Estévez | J22: 0.1577480899 | K22: 100.1577481 | L22: 4 | M22: -75 | N22: 100 | O22: 175 | P22: 0 | Q22: 26 | R22: 46 | S22: 1 | T22: 20 | U22: 23 | V22: 0 | W22: 18 | X22: 55 | Y22: 3 | Z22: 24 | AA22: 0 | AB22: 0 | AC22: 12 | AD22: 51 | AI22: 3 | AJ22: 4 | AK22: 28 | BC22: 0 | BD22: 0 | BE22: 0 | BF22: 0 | BG22: 0 | BH22: 0 | BI22: 0 | BJ22: 0 | BK22: 0 | BL22: 0
A23: 18 | B23: 28 | C23: Lluís García | J23: 0.5541415282 | K23: 72.55414153 | L23: 3 | M23: -140 | N23: 72 | O23: 212 | P23: 3 | Q23: 24 | R23: 0 | S23: 0 | T23: 3 | U23: 25 | V23: 0 | W23: 14 | X23: 105 | Y23: 0 | Z23: 19 | AA23: 31 | AB23: 0 | AC23: 12 | AD23: 51 | AI23: 7 | BC23: 0 | BD23: 0 | BE23: 0 | BF23: 0 | BG23: 0 | BH23: 0 | BI23: 0 | BJ23: 0 | BK23: 0 | BL23: 0
A24: 19 | J24: 0.121297507 | K24: 0.121297507 | L24: -20 | M24: 0 | N24: 0 | O24: 0
A25: 20 | J25: 0.3210444374 | K25: 0.3210444374 | L25: -20 | M25: 0 | N25: 0 | O25: 0
A26: 21 | J26: 0.8907980568 | K26: 0.8907980568 | L26: -20 | M26: 0 | N26: 0 | O26: 0
A27: 22 | J27: 0.117992327 | K27: 0.117992327 | L27: -20 | M27: 0 | N27: 0 | O27: 0
A28: 23 | J28: 0.6636964277 | K28: 0.6636964277 | L28: -20 | M28: 0 | N28: 0 | O28: 0
A29: 24 | J29: 0.9649667731 | K29: 0.9649667731 | L29: -20 | M29: 0 | N29: 0 | O29: 0
A30: 25 | J30: =RAND() -> 0.3103823483 | K30: =+N30+J30 -> 0.3103823483 | L30: -20 | M30: =+N30-O30 -> 0 | N30: =+Q30+T30+W30+Z30+AC30+AF30 -> 0 | O30: =+R30+U30+X30+AA30+AD30+AG30 -> 0
A31: 26 | J31: 0.4805335082 | K31: 0.4805335082 | L31: -20 | M31: 0 | N31: 0 | O31: 0
A32: 27 | J32: 0.315674667 | K32: 0.315674667 | L32: -20 | M32: 0 | N32: 0 | O32: 0
A33: 28 | J33: 0.2778795179 | K33: 0.2778795179 | L33: -20 | M33: 0 | N33: 0 | O33: 0
A34: 29 | D34: 20 | J34: 0.7876750914 | K34: 0.7876750914 | L34: -20 | M34: 0 | N34: 0 | O34: 0
A35: 30 | D35: 20 | J35: 0.354440174 | K35: 0.354440174 | L35: -20 | M35: 0 | N35: 0 | O35: 0
A36: 31 | D36: 20 | J36: 0.7027221987 | K36: 0.7027221987 | L36: -20 | M36: 0 | N36: 0 | O36: 0
A37: 32 | D37: 7 | J37: 0.8563176825 | K37: 0.8563176825 | L37: -20 | M37: 0 | N37: 0 | O37: 0
A38: 33 | D38: 5 | J38: 0.8478500409 | K38: 0.8478500409 | L38: -20 | M38: 0 | N38: 0 | O38: 0
A39: 34 | D39: 8 | J39: 0.4225702741 | K39: 0.4225702741 | L39: -20 | M39: 0 | N39: 0 | O39: 0
A40: 35 | D40: 1 | J40: 0.1885522112 | K40: 0.1885522112 | L40: -20 | M40: 0 | N40: 0 | O40: 0
C41: Descansa | L41: 24-0
M42: =SUM(M6:M40) -> 240 | Q42: =SUM(Q6:Q40)-48 -> 512 | R42: =SUM(R6:R23) -> 512 | S42: =SUM(S6:S25) -> 32 | T42: =SUM(T6:T40)-48 -> 370 | U42: =SUM(U6:U23) -> 370 | V42: =SUM(V6:V25) -> 30 | W42: =SUM(W6:W40)-48 -> 580 | X42: =SUM(X6:X23) -> 580 | Y42: =SUM(Y6:Y25) -> 32 | Z42: =SUM(Z6:Z40)-48 -> 486 | AA42: =SUM(AA6:AA23) -> 486 | AC42: =SUM(AC6:AC40)-48 -> 470 | AD42: =SUM(AD6:AD23) -> 470 | AF42: =+Q42+T42+W42+Z42+AC42 -> 2418 | AG42: =+R42+U42+X42+AA42+AD42 -> 2418
Q43: =+Q6+Q7+Q13+Q16 -> 172 | R43: =+R6+R7+R13+R16 -> 84 | T43: =+T6+T9+T12+T16 -> 127 | U43: =+U6+U9+U12+U16 -> 58 | W43: =+W6+W7+W11+W17 -> 243 | X43: =+X6+X7+X11+X17 -> 47 | Z43: =+Z6+Z8+Z9+Z15 -> 187 | AA43: =+AA6+AA8+AA9+AA15 -> 56 | AC43: =+AC6+AC7+AC11+AC13 -> 197 | AD43: =+AD6+AD7+AD11+AD13 -> 38 | AF43: =+Q43+T43+W43+Z43+AC43 -> 926 | AG43: =+R43+U43+X43+AA43+AD43 -> 283
R44: =(Q43-R43)/4 -> 22 | U44: =(T43-U43)/4 -> 17.25 | X44: =(W43-X43)/4 -> 49 | AA44: =(Z43-AA43)/4 -> 32.75 | AD44: =(AC43-AD43)/4 -> 39.75 | AG44: =+AF43-AG43 -> 643
AE45: Resultat mitjà | AF45: =+AF43/20 -> 46.3 | AG45: =+AG43/20 -> 14.15
AF46: Diferència mitjana | AG46: =+AG44/20 -> 32.15
L48: CLASSIFICACIÓ | AE48: RONDA 6
C49: Jugador | E49: R 1 | F49: R 2 | G49: R 3 | H49: R 4 | I49: R 5 | J49: R 6 | L49: Premi | M49: Diferència | N49: Favor | O49: Contra
A50: =RANK(D50,D$50:D$69,0) -> 1 | D50: =+L50*1000+M50 -> 0 | L50: =+P50+S50+V50+Y50+AB50+AE50 -> 0 | M50: =+N50-O50 -> 0 | N50: =+Q50+T50+W50+Z50+AC50+AF50 -> 0 | O50: =+R50+U50+X50+AA50+AD50+AG50 -> 0
A51: 1 | D51: =+L51*1000+M51 -> 0 | L51: 0 | M51: 0 | N51: 0 | O51: 0
A52: 1 | D52: 0 | L52: 0 | M52: 0 | N52: 0 | O52: 0
A53: 1 | D53: 0 | L53: 0 | M53: 0 | N53: 0 | O53: 0
A54: 1 | D54: 0 | L54: 0 | M54: 0 | N54: 0 | O54: 0
A55: 1 | D55: 0 | L55: 0 | M55: 0 | N55: 0 | O55: 0
A56: 1 | D56: 0 | L56: 0 | M56: 0 | N56: 0 | O56: 0
A57: 1 | D57: 0 | L57: 0 | M57: 0 | N57: 0 | O57: 0
A58: 1 | D58: 0 | L58: 0 | M58: 0 | N58: 0 | O58: 0
A59: 1 | D59: 0 | L59: 0 | M59: 0 | N59: 0 | O59: 0
A60: 1 | D60: 0 | L60: 0 | M60: 0 | N60: 0 | O60: 0
A61: 1 | D61: 0 | L61: 0 | M61: 0 | N61: 0 | O61: 0
A62: 1 | D62: 0 | L62: 0 | M62: 0 | N62: 0 | O62: 0
A63: 1 | D63: 0 | L63: 0 | M63: 0 | N63: 0 | O63: 0
A64: 1 | D64: 0 | L64: 0 | M64: 0 | N64: 0 | O64: 0
A65: 1 | D65: 0 | L65: 0 | M65: 0 | N65: 0 | O65: 0
A66: 1 | D66: 0 | L66: 0 | M66: 0 | N66: 0 | O66: 0
A67: 1 | D67: 0 | L67: 0 | M67: 0 | N67: 0 | O67: 0
A68: 1 | D68: =+L68*1000+M68 -> 0 | L68: =+P68+S68+V68+Y68+AB68+AE68 -> 0 | M68: =+N68-O68 -> 0 | N68: =+Q68+T68+W68+Z68+AC68+AF68 -> 0 | O68: =+R68+U68+X68+AA68+AD68+AG68 -> 0
A69: 1 | D69: =+L69*1000+M69 -> 0 | L69: =+P69+S69+V69+Y69+AB69+AE69 -> 0 | M69: =+N69-O69 -> 0 | N69: =+Q69+T69+W69+Z69+AC69+AF69 -> 0 | O69: =+R69+U69+X69+AA69+AD69+AG69 -> 0

Sheet Resultats
A1: PARTIDES ST MAURE'17
A3: Taula | B3: Ronda | C3: EQUIPS | G3: Local | H3: Visitant | I3: Resultat
A4: 1 | B4: 1 | C4: 10 | D4: 4 | E4: 22 | F4: 21 | I4: 26-46
A5: 2 | B5: 1 | C5: 14 | D5: 3 | E5: 11 | F5: 26 | I5: 19-13
A6: 3 | B6: 1 | C6: 27 | D6: 7 | E6: 5 | F6: 25 | I6: 59-28
A7: 4 | B7: 1 | C7: 16 | D7: 9 | E7: 24 | F7: 8 | I7: 48-17
A8: 5 | B8: 1
A9: 6 | B9: 1
A10: 1 | B10: 2 | C10: 27 | D10: 9 | E10: 7 | F10: 16 | I10: 18-3
A11: 2 | B11: 2 | C11: 28 | D11: 22 | E11: 2 | F11: 21 | I11: 25-3
A12: 3 | B12: 2 | C12: 14 | D12: 26 | E12: 3 | F12: 11 | I12: 32-61
A13: 4 | B13: 2 | C13: 10 | D13: 25 | E13: 4 | F13: 5 | I13: 23-20
A14: 5 | B14: 2
A15: 6 | B15: 2
A16: 1 | B16: 3 | C16: 27 | D16: 2 | E16: 9 | F16: 21 | I16: 14-48
A17: 2 | B17: 3 | C17: 3 | D17: 7 | E17: 11 | F17: 16 | I17: 1-35
A18: 3 | B18: 3 | C18: 28 | D18: 24 | E18: 22 | F18: 8 | I18: 14-105
A19: 4 | B19: 3 | C19: 10 | D19: 14 | E19: 25 | F19: 4 | I19: 55-18
A20: 5 | B20: 3
A21: 6 | B21: 3
A22: 1 | B22: 4 | C22: 9 | D22: 22 | E22: 21 | F22: 11 | I22: 17-7
A23: 2 | B23: 4 | C23: 8 | D23: 10 | E23: 16 | F23: 14 | I23: 64-30
A24: 3 | B24: 4 | C24: 27 | D24: 3 | E24: 2 | F24: 5 | I24: 0-75
A25: 4 | B25: 4 | C25: 26 | D25: 24 | E25: 7 | F25: 28 | I25: 31-19
A26: 5 | B26: 4
A27: 6 | B27: 4
A28: 1 | B28: 5 | C28: 9 | D28: 8 | E28: 21 | F28: 10 | I28: 75-0
A29: 2 | B29: 5 | C29: 22 | D29: 2 | E29: 11 | F29: 5 | I29: 45-11
A30: 3 | B30: 5 | C30: 26 | D30: 16 | E30: 14 | F30: 25 | I30: 15-26
A31: 4 | B31: 5 | C31: 27 | D31: 24 | E31: 4 | F31: 28 | I31: 51-12
A32: 5 | B32: 5 | XFD32: =SUM(A32:XFC32) -> 10
A33: 6 | B33: 5 | XFD33: =SUM(A33:XFC33) -> 11
A34: FINAL | C34: 9 | D34: 22 | E34: 8 | F34: 2 | I34: 25-2

Sheet Inscripcions
A2: SOPAR BOTIFARRA | E2: CAMPIONAT BOTIFARRA
B5: PARTICIPANTS | F5: PARTICIPANTS | J5: PARTICIPANTS
A7: 1 | E7: 1 | I7: 21
A8: 2 | E8: 2 | I8: =+I7+1 -> 22
A9: 3 | E9: 3 | I9: =+I8+1 -> 23
A10: 4 | E10: 5 | I10: 24
A11: 5 | E11: 6 | I11: 25
A12: 6 | E12: 7 | I12: 26
A13: 7 | E13: 9 | I13: 27
A14: 8 | E14: 10 | I14: 28
A15: 9 | E15: 11 | I15: 29
A16: 10 | E16: 12 | I16: 30
A17: 11 | E17: 14 | I17: 31
A18: 12 | E18: 15 | I18: 32
A19: 13 | E19: 16 | I19: 33
A20: 14 | E20: 17 | I20: 34
A21: 15 | E21: 19 | I21: 35
A22: 16 | E22: 20 | I22: 36

Sheet Taules
A1: TAULES BOTIFARRA'16
A3: Taula | B3: Ronda | C3: EQUIPS | D3: Local | E3: Visitant
